bitfinex/quotes_BTCUSD_20241021
["timestamp","ask_amount","ask_price","bid_price","bid_amount"]
[1729478979876,0.245429,68762.0,68761.0,0.03402651]
[1729478980099,0.145426,68764.0,68763.0,0.00872664]
[1729478980313,0.145421,68766.0,68765.0,0.00872664]
[1729478980525,0.290813,68773.0,68768.0,0.00872664]
[1729478980526,0.1,68769.0,68768.0,0.00872664]
[1729478980750,0.1,68769.0,68768.0,0.03775315]
[1729478981200,0.245414,68769.0,68768.0,0.0223737]
[1729478981450,0.1,68769.0,68768.0,0.03775935]
[1729478981648,0.290813,68773.0,68768.0,0.03775935]
[1729478981649,0.245408,68772.0,68771.0,0.005]
[1729478981852,0.245408,68772.0,68771.0,0.03403271]
[1729478982063,0.245408,68772.0,68771.0,0.03775935]
[1729478982515,0.436191,68777.0,68776.0,0.00872664]
[1729478982740,0.436191,68777.0,68776.0,0.03775935]
[1729478982936,0.145397,68777.0,68776.0,0.03775935]
[1729478983079,0.09992154,68777.0,68776.0,0.03775935]
[1729478983300,0.436153,68783.0,68782.0,0.005]
[1729478983501,0.58511215,68783.0,68782.0,0.02038565]
[1729478983710,0.68511215,68783.0,68782.0,0.02411229]
[1729478984714,0.68511215,68783.0,68782.0,0.02511229]
[1729478984715,0.547153,68783.0,68782.0,0.02511229]
[1729478984933,0.156384,68783.0,68782.0,0.02511229]
[1729478985134,0.156384,68783.0,68782.0,0.03701048]
[1729478985352,0.156384,68783.0,68782.0,0.04785186]
[1729478985583,0.145384,68783.0,68782.0,0.0468521]
[1729478985833,0.30634315,68783.0,68782.0,0.0468521]
[1729478986048,0.30634315,68783.0,68782.0,0.03321038]
[1729478986279,0.40634315,68783.0,68782.0,0.03321038]
[1729478986702,0.26095915,68783.0,68782.0,0.03321038]
[1729478986925,0.40634315,68783.0,68782.0,0.03321038]
[1729478987154,0.39434315,68783.0,68782.0,0.03321038]
[1729478987367,0.39434315,68783.0,68782.0,0.04048631]
[1729478987595,0.39434315,68783.0,68782.0,0.04148631]
[1729478988063,0.39434315,68783.0,68782.0,0.04048631]
[1729478988291,0.39634315,68783.0,68782.0,0.04048631]
[1729478991928,0.39634315,68783.0,68782.0,0.02964493]
[1729478992152,0.39634315,68783.0,68782.0,0.08329649]
[1729478992391,0.39634315,68783.0,68782.0,0.04049786]
[1729478994552,0.39634315,68783.0,68782.0,0.08384743]
[1729478994975,0.39634315,68783.0,68782.0,0.08467843]
[1729478995197,0.39800515,68783.0,68782.0,0.04132886]
[1729478995844,0.39800515,68783.0,68782.0,0.02041057]
[1729478996056,0.39800515,68783.0,68782.0,0.04132921]
[1729478996737,0.39800515,68783.0,68782.0,0.04646993]
[1729478996949,0.249046,68783.0,68782.0,0.04646993]
[1729478997372,0.249046,68783.0,68782.0,0.04132921]
[1729479001109,0.249046,68783.0,68782.0,0.04632921]
[1729479001110,0.149046,68783.0,68782.0,0.04632921]
[1729479001556,0.149046,68783.0,68782.0,0.05146993]
[1729479001769,0.149046,68783.0,68782.0,0.05149685]
[1729479001994,0.149046,68783.0,68782.0,0.04634926]
[1729479002205,0.149046,68783.0,68782.0,0.05034926]
[1729479002424,0.147046,68783.0,68782.0,0.04634926]
[1729479002854,0.001662,68783.0,68782.0,0.1966428]
[1729479003083,0.001662,68783.0,68782.0,0.20373526]
[1729479003366,0.001662,68783.0,68782.0,0.28856803]
[1729479003588,0.001662,68783.0,68782.0,0.28455825]
[1729479003812,0.001662,68783.0,68782.0,0.27955825]
[1729479004040,0.001662,68783.0,68782.0,0.20573526]
[1729479004258,0.001662,68783.0,68782.0,0.28133526]
[1729479004471,0.001662,68783.0,68782.0,0.36815174]
[1729479004958,0.001662,68783.0,68782.0,0.34644965]
[1729479005171,0.002662,68783.0,68782.0,0.33353224]
[1729479005388,0.001662,68783.0,68782.0,0.34644583]
[1729479005614,0.002662,68783.0,68782.0,0.28933144]
[1729479005828,0.003662,68783.0,68782.0,0.29733144]
[1729479006058,0.003662,68783.0,68782.0,0.44629059]
[1729479006717,0.002662,68783.0,68782.0,0.5717744]
[1729479006928,0.002662,68783.0,68782.0,0.5717732]
[1729479007151,0.002662,68783.0,68782.0,0.46229059]
[1729479007412,0.003662,68783.0,68782.0,0.46929059]
[1729479007624,0.002662,68783.0,68782.0,0.50567814]
[1729479007845,0.002662,68783.0,68782.0,0.52737273]
[1729479008065,0.003662,68783.0,68782.0,0.56399059]
[1729479008280,0.002662,68783.0,68782.0,0.55499059]
[1729479008770,0.001662,68787.0,68786.0,0.17110464]
[1729479008987,0.21563652,68817.0,68795.0,0.27148564]
[1729479009208,0.21563652,68817.0,68795.0,0.45223259]
[1729479009436,0.21563652,68817.0,68802.0,0.02372664]
[1729479009662,0.21563652,68817.0,68802.0,0.20447359]
[1729479009922,0.21563652,68817.0,68802.0,0.37617359]
[1729479010117,0.21563652,68817.0,68809.0,0.02372664]
[1729479010356,0.21563652,68817.0,68816.0,0.01372664]
[1729479010584,0.21563652,68824.0,68823.0,0.00872664]
[1729479010787,0.21563652,68824.0,68823.0,0.01827307]
[1729479010788,0.31563652,68824.0,68823.0,0.01827307]
[1729479011004,0.1,68824.0,68823.0,0.01827307]
[1729479011721,0.145276,68835.0,68832.0,0.00872664]
[1729479011934,0.146925,68833.0,68832.0,0.01827307]
[1729479012601,0.146925,68833.0,68828.0,0.01812039]
[1729479012602,0.29588415,68833.0,68831.0,0.00372664]
[1729479012812,0.29424015,68832.0,68831.0,0.00872664]
[1729479013450,0.145281,68832.0,68831.0,0.00872664]
[1729479015627,0.146281,68832.0,68831.0,0.00872664]
[1729479016076,0.145281,68832.0,68831.0,0.00872664]
[1729479016306,0.146281,68832.0,68831.0,0.00972664]
[1729479016731,0.145281,68832.0,68831.0,0.00872664]
[1729479016948,0.145281,68832.0,68831.0,0.00972664]
[1729479017157,0.146281,68832.0,68831.0,0.01072664]
[1729479017372,0.146281,68832.0,68831.0,0.00972664]
[1729479017589,0.146281,68832.0,68831.0,0.01072664]
[1729479018668,0.147943,68832.0,68831.0,0.01072664]
[1729479020500,0.147943,68832.0,68831.0,0.01527084]
[1729479020938,0.002662,68832.0,68831.0,0.02027084]
[1729479021163,0.002662,68832.0,68831.0,0.18657505]
[1729479021385,0.002662,68832.0,68831.0,0.18366983]
[1729479021604,0.002662,68832.0,68831.0,0.19275823]
[1729479021813,0.001662,68832.0,68831.0,0.19175823]
[1729479022024,0.001662,68832.0,68831.0,0.19075823]
[1729479022250,0.001662,68832.0,68831.0,0.19475823]
[1729479022683,0.001662,68832.0,68831.0,0.34471738]
[1729479023123,0.001662,68832.0,68831.0,0.34571738]
[1729479023336,0.007646,68833.0,68832.0,0.15900764]
[1729479023558,0.007646,68833.0,68832.0,0.33971538]
[1729479024212,0.007646,68833.0,68832.0,0.36271538]
[1729479024437,0.007646,68833.0,68832.0,0.40584721]
[1729479024667,0.007646,68833.0,68832.0,0.40784721]
[1729479025103,0.007646,68833.0,68832.0,0.40984721]
[1729479025553,0.007646,68833.0,68832.0,0.40784721]
[1729479025771,0.007646,68833.0,68832.0,0.07047523]
[1729479025986,0.007646,68833.0,68832.0,0.04957274]
[1729479026205,0.007646,68833.0,68832.0,0.07041448]
[1729479026422,0.007646,68833.0,68832.0,0.36465509]
[1729479027149,0.007646,68833.0,68832.0,0.37065509]
[1729479027366,0.007646,68833.0,68832.0,0.36465509]
[1729479027819,0.007646,68833.0,68832.0,0.37165509]
[1729479028031,0.007646,68833.0,68832.0,0.36965509]
[1729479028253,0.007646,68833.0,68832.0,0.05041494]
[1729479028466,0.152925,68833.0,68832.0,0.05741494]
[1729479028677,0.152925,68833.0,68832.0,0.04541494]
[1729479028891,0.007646,68833.0,68832.0,0.05041494]
[1729479029531,0.007646,68833.0,68832.0,0.04541494]
[1729479029752,0.152925,68833.0,68832.0,0.04141671]
[1729479029963,0.152925,68833.0,68832.0,0.04841671]
[1729479030438,0.152925,68833.0,68832.0,0.04141671]
[1729479030626,0.152925,68833.0,68832.0,0.04641671]
[1729479030844,0.57058415,68833.0,68832.0,0.04641671]
[1729479031058,0.57058415,68833.0,68832.0,0.02553968]
[1729479031268,0.57058415,68833.0,68832.0,0.04544474]
[1729479031490,0.57058415,68833.0,68832.0,0.02353968]
[1729479031922,0.57058415,68833.0,68832.0,0.02053968]
[1729479032136,0.57058415,68833.0,68832.0,0.0404536]
[1729479032361,0.57058415,68833.0,68832.0,0.01181304]
[1729479032577,0.57258415,68833.0,68832.0,0.01281304]
[1729479032826,0.57258415,68833.0,68832.0,0.00554348]
[1729479033080,0.57258415,68833.0,68832.0,0.00927012]
[1729479033290,0.57258415,68833.0,68832.0,0.01754152]
[1729479033508,0.57258415,68833.0,68832.0,0.01754219]
[1729479033725,0.57258415,68833.0,68832.0,0.02663099]
[1729479033945,0.57258415,68833.0,68832.0,0.02290435]
[1729479034171,0.57258415,68833.0,68832.0,0.002]
[1729479034434,0.57258415,68833.0,68832.0,0.00654449]
[1729479034644,0.57258415,68833.0,68832.0,0.001]
[1729479035076,0.86114215,68833.0,68832.0,0.00554518]
[1729479035292,0.86314215,68833.0,68832.0,0.00654518]
[1729479035758,0.86114215,68833.0,68832.0,0.00554518]
[1729479036182,0.86314215,68833.0,68832.0,0.01381703]
[1729479036417,0.86314215,68833.0,68832.0,0.01281703]
[1729479036883,0.86314215,68833.0,68832.0,0.01381703]
[1729479036884,0.87414215,68833.0,68832.0,0.01381703]
[1729479037125,0.86314215,68833.0,68832.0,0.03275383]
[1729479037335,0.86314215,68833.0,68832.0,0.03375383]
[1729479037544,0.87414215,68833.0,68832.0,0.002]
[1729479037776,0.87414215,68833.0,68832.0,0.01285417]
[1729479037980,0.87214215,68833.0,68832.0,0.0219053]
[1729479038184,0.86114215,68833.0,68832.0,0.0209053]
[1729479038389,0.87514215,68833.0,68832.0,0.03175986]
[1729479038806,0.86114215,68833.0,68832.0,0.03175986]
[1729479039014,0.86114215,68833.0,68832.0,0.0209053]
[1729479039225,0.87114215,68833.0,68832.0,0.0209053]
[1729479039449,0.87114215,68833.0,68832.0,0.01181604]
[1729479039697,0.88114215,68833.0,68832.0,0.02090561]
[1729479040163,0.88114215,68833.0,68832.0,0.01181604]
[1729479040370,0.88114215,68833.0,68832.0,0.01554268]
[1729479041091,0.88114215,68833.0,68832.0,0.05287235]
[1729479041092,0.80494215,68833.0,68832.0,0.05287235]
[1729479041305,0.463483,68833.0,68832.0,0.02054166]
[1729479041521,0.463483,68833.0,68832.0,0.05786908]
[1729479041946,0.463483,68833.0,68832.0,0.079592]
[1729479042364,0.453483,68833.0,68832.0,0.079592]
[1729479042571,0.556483,68833.0,68832.0,0.079592]
[1729479043399,0.546483,68833.0,68832.0,0.079592]
[1729479043815,0.548483,68833.0,68832.0,0.079592]
[1729479044244,0.543483,68833.0,68832.0,0.08042]
[1729479044467,0.543483,68833.0,68832.0,0.08142]
[1729479044901,0.543483,68833.0,68832.0,0.03145814]
[1729479045110,0.252925,68833.0,68832.0,0.0814227]
[1729479046233,0.253925,68833.0,68832.0,0.0814227]
[1729479046440,0.253925,68833.0,68832.0,0.0804227]
[1729479047299,0.252925,68833.0,68832.0,0.0804227]
[1729479047520,0.254925,68833.0,68832.0,0.0804227]
[1729479047765,0.252925,68833.0,68832.0,0.0804227]
[1729479048247,0.252925,68833.0,68832.0,0.0814227]
[1729479048455,0.252925,68833.0,68832.0,0.05870353]
[1729479050333,0.256925,68833.0,68832.0,0.05870353]
[1729479050542,0.259925,68833.0,68832.0,0.06384624]
[1729479050744,0.256925,68833.0,68832.0,0.06384624]
[1729479050969,0.252925,68833.0,68832.0,0.06384624]
[1729479051104,0.253925,68833.0,68832.0,0.06384624]
[1729479051312,0.253925,68833.0,68832.0,0.05870353]
[1729479051874,0.007646,68833.0,68832.0,0.05970353]
[1729479052101,0.252925,68833.0,68832.0,0.06484624]
[1729479052356,0.252925,68833.0,68832.0,0.05970383]
[1729479052979,0.252925,68833.0,68832.0,0.05870383]
[1729479054034,0.252925,68833.0,68832.0,0.05970383]
[1729479054255,0.252925,68833.0,68832.0,0.05870383]
[1729479054719,0.252925,68833.0,68832.0,0.05970383]
[1729479054938,0.252925,68833.0,68832.0,0.05870383]
[1729479056025,0.152925,68833.0,68832.0,0.05870396]
[1729479056421,0.152925,68833.0,68832.0,0.05970396]
[1729479056575,0.152925,68833.0,68832.0,0.05870396]
[1729479056990,0.152925,68833.0,68832.0,0.05970396]
[1729479057861,0.152925,68833.0,68832.0,0.05870396]
[1729479058072,0.007646,68833.0,68832.0,0.05870396]
[1729479058282,0.007646,68833.0,68832.0,0.08837302]
[1729479058492,0.007646,68833.0,68832.0,0.36241106]
[1729479058699,0.007646,68833.0,68832.0,0.25674867]
[1729479059334,0.007646,68833.0,68832.0,0.25474867]
[1729479059541,0.007646,68833.0,68832.0,0.21810794]
[1729479059743,0.007646,68833.0,68832.0,0.36338894]
[1729479059943,0.007646,68833.0,68832.0,0.14036943]
[1729479060160,0.152925,68833.0,68832.0,0.13980857]
[1729479060360,0.007646,68833.0,68832.0,0.15824439]
[1729479060612,0.007646,68833.0,68832.0,0.14499036]
[1729479060795,0.007646,68833.0,68832.0,0.15199036]
[1729479061001,0.008646,68833.0,68832.0,0.15199036]
[1729479061198,0.008646,68833.0,68832.0,0.14683867]
[1729479061410,0.008646,68833.0,68832.0,0.0836215]
[1729479061613,0.008646,68833.0,68832.0,0.10537972]
[1729479061860,0.007646,68833.0,68832.0,0.09637972]
[1729479062278,0.007646,68833.0,68832.0,0.0746215]
[1729479062628,0.152925,68833.0,68832.0,0.0746215]
[1729479062827,0.007646,68833.0,68832.0,0.0746215]
[1729479063225,0.152925,68833.0,68832.0,0.0746215]
[1729479063580,0.152925,68833.0,68832.0,0.0786215]
[1729479063781,0.152925,68833.0,68832.0,0.0796215]
[1729479064021,0.007646,68833.0,68832.0,0.0786215]
[1729479064453,0.007646,68833.0,68832.0,0.0806215]
[1729479064677,0.152925,68833.0,68832.0,0.0746215]
[1729479064916,0.152925,68833.0,68832.0,0.0756215]
[1729479065411,0.152925,68833.0,68832.0,0.05874267]
[1729479065645,0.152925,68833.0,68832.0,0.06480267]
[1729479066092,0.007646,68833.0,68832.0,0.06480267]
[1729479066306,0.152925,68833.0,68832.0,0.06880267]
[1729479066736,0.152925,68833.0,68832.0,0.05880267]
[1729479066946,0.009646,68833.0,68832.0,0.05880267]
[1729479067154,0.009646,68833.0,68832.0,0.05980267]
[1729479067602,0.009646,68833.0,68832.0,0.05880267]
[1729479067824,0.009646,68833.0,68832.0,0.06670805]
[1729479068043,0.010646,68833.0,68832.0,0.06380267]
[1729479068260,0.010646,68833.0,68832.0,0.08556089]
[1729479068695,0.010646,68833.0,68832.0,0.06380267]
[1729479069139,0.010646,68833.0,68832.0,0.34365194]
[1729479069350,0.010646,68833.0,68832.0,0.3624729]
[1729479069563,0.010646,68833.0,68832.0,0.25383936]
[1729479069779,0.010646,68833.0,68832.0,0.0646602]
[1729479070017,0.152925,68833.0,68832.0,0.16314636]
[1729479070237,0.007646,68833.0,68832.0,0.12916653]
[1729479070442,0.007646,68833.0,68832.0,0.08355692]
[1729479070651,0.007646,68833.0,68832.0,0.08155692]
[1729479070869,0.007646,68833.0,68832.0,0.08055692]
[1729479071081,0.008646,68833.0,68832.0,0.08955692]
[1729479071304,0.007646,68833.0,68832.0,0.08055692]
[1729479071616,0.007646,68833.0,68832.0,0.12916653]
[1729479071850,0.007646,68833.0,68832.0,0.08346223]
[1729479072069,0.007646,68833.0,68832.0,0.12401289]
[1729479072281,0.007646,68833.0,68832.0,0.13416653]
[1729479072498,0.007646,68833.0,68832.0,0.15073921]
[1729479072706,0.007646,68833.0,68832.0,0.13418148]
[1729479073359,0.007646,68833.0,68832.0,0.23083792]
[1729479073582,0.007646,68833.0,68832.0,0.49261103]
[1729479073791,0.007646,68833.0,68832.0,0.40279707]
[1729479074019,0.007646,68833.0,68832.0,0.40379707]
[1729479074224,0.007646,68833.0,68832.0,0.40279707]
[1729479074437,0.007646,68833.0,68832.0,0.40679707]
[1729479074647,0.008646,68833.0,68832.0,0.41579707]
[1729479074867,0.007646,68833.0,68832.0,0.40679707]
[1729479075353,0.008646,68833.0,68832.0,0.52446757]
[1729479075590,0.007646,68833.0,68832.0,0.51546757]
[1729479076041,0.50614852,68844.0,68843.0,0.01372664]
[1729479076275,0.65140352,68844.0,68843.0,0.03641765]
[1729479076758,0.145252,68846.0,68844.0,0.005]
[1729479077021,0.245253,68845.0,68844.0,0.005]
[1729479077275,0.245253,68845.0,68844.0,0.02053863]
[1729479077515,0.146887,68851.0,68850.0,0.00872664]
[1729479077751,0.146887,68851.0,68850.0,0.03141736]
[1729479078887,0.246887,68851.0,68850.0,0.03141736]
[1729479079152,0.246887,68851.0,68850.0,0.03241736]
[1729479079153,0.255887,68851.0,68850.0,0.03241736]
[1729479079776,0.110646,68851.0,68850.0,0.03241736]
[1729479079992,0.020646,68851.0,68850.0,0.03341736]
[1729479080437,0.265887,68851.0,68850.0,0.02160537]
[1729479080645,0.265887,68851.0,68850.0,0.02886601]
[1729479080860,0.120646,68851.0,68850.0,0.0384086]
[1729479081070,0.120646,68851.0,68850.0,0.05580161]
[1729479081511,0.120646,68851.0,68850.0,0.2101298]
[1729479081512,0.020646,68851.0,68850.0,0.2101298]
[1729479081745,0.020646,68851.0,68850.0,0.0648868]
[1729479082426,0.020646,68851.0,68850.0,0.05080161]
[1729479082427,0.265887,68851.0,68850.0,0.05080161]
[1729479082645,0.255887,68851.0,68850.0,0.0324086]
[1729479082862,0.255887,68851.0,68850.0,0.0344086]
[1729479083292,0.255887,68851.0,68850.0,0.0324086]
[1729479083714,0.257887,68851.0,68850.0,0.0324086]
[1729479083921,0.248887,68851.0,68850.0,0.0314086]
[1729479084135,0.246887,68851.0,68850.0,0.0344086]
[1729479084623,0.246887,68851.0,68850.0,0.0314086]
[1729479084856,0.248887,68851.0,68850.0,0.0314086]
[1729479085708,0.251887,68851.0,68850.0,0.0314086]
[1729479086140,0.251887,68851.0,68850.0,0.04049379]
[1729479086352,0.251887,68851.0,68850.0,0.05788136]
[1729479088350,0.00647114,68851.0,68850.0,0.05788136]
[1729479088769,0.15171214,68851.0,68850.0,0.05788136]
[1729479088979,0.25171214,68851.0,68850.0,0.05788136]
[1729479089640,0.25171214,68851.0,68850.0,0.05788435]
[1729479090094,0.25171214,68851.0,68850.0,0.04049379]
[1729479090809,0.24971214,68851.0,68850.0,0.04049379]
[1729479091050,0.24971214,68851.0,68850.0,0.04349379]
[1729479091302,0.24971214,68851.0,68850.0,0.04049379]
[1729479091729,0.24771214,68851.0,68850.0,0.04049379]
[1729479091965,0.24771214,68851.0,68850.0,0.0314086]
[1729479092207,0.24771214,68851.0,68850.0,0.0334086]
[1729479092438,0.24771214,68851.0,68850.0,0.0424937]
[1729479092648,0.24771214,68851.0,68850.0,0.0404937]
[1729479092859,0.24971214,68851.0,68850.0,0.0404937]
[1729479093279,0.24971214,68851.0,68850.0,0.05788684]
[1729479093497,0.00447114,68851.0,68850.0,0.06288684]
[1729479094461,0.00164857,68851.0,68850.0,0.06288684]
[1729479094673,0.00164857,68851.0,68850.0,0.03368296]
[1729479094882,0.00264857,68851.0,68850.0,0.03181174]
[1729479095090,0.001,68851.0,68850.0,0.03181174]
[1729479095299,0.001,68851.0,68850.0,0.03281174]
[1729479095506,0.001,68851.0,68850.0,0.02372664]
[1729479095942,0.001,68851.0,68850.0,0.02272664]
[1729479096176,0.002,68851.0,68850.0,0.07216704]
[1729479096597,0.001,68851.0,68850.0,0.23603464]
[1729479096848,0.001646,68852.0,68851.0,0.15896764]
[1729479097099,0.001646,68852.0,68851.0,0.18196764]
[1729479097749,0.001646,68852.0,68851.0,0.0801568]
[1729479098407,0.002646,68852.0,68851.0,0.0891568]
[1729479098625,0.001646,68852.0,68851.0,0.0801568]
[1729479098829,0.001646,68852.0,68851.0,0.2253978]
[1729479099037,0.001646,68852.0,68851.0,0.33092679]
[1729479099243,0.001646,68852.0,68851.0,0.39607203]
[1729479099674,0.001646,68852.0,68851.0,0.41778711]
[1729479099887,0.001646,68852.0,68851.0,0.33692679]
[1729479100092,0.003646,68852.0,68851.0,0.44292679]
[1729479100512,0.002646,68852.0,68851.0,0.43392679]
[1729479100932,0.003646,68852.0,68851.0,0.44292679]
[1729479101140,0.001646,68856.0,68855.0,0.18195864]
[1729479101383,0.001646,68856.0,68855.0,0.39523232]
[1729479101851,0.001646,68856.0,68855.0,0.20657717]
[1729479102283,0.001646,68856.0,68855.0,0.22910852]
[1729479102505,0.001646,68856.0,68855.0,0.25300031]
[1729479102735,0.001646,68856.0,68855.0,0.23210852]
[1729479102962,0.001646,68856.0,68855.0,0.25300052]
[1729479103489,0.001646,68856.0,68855.0,0.24283644]
[1729479103704,0.001646,68856.0,68855.0,0.28626271]
[1729479103940,0.001646,68856.0,68855.0,0.24283644]
[1729479104189,0.001646,68856.0,68855.0,0.38306844]
[1729479104431,0.001646,68856.0,68855.0,0.14774944]
[1729479104676,0.001646,68856.0,68855.0,0.03940387]
[1729479104677,0.323776,68856.0,68855.0,0.03940387]
[1729479104920,0.323776,68856.0,68855.0,0.03440387]
[1729479105156,0.323776,68856.0,68855.0,0.03140387]
[1729479105384,0.323776,68856.0,68855.0,0.03440387]
[1729479105891,0.323776,68856.0,68855.0,0.03140387]
[1729479106348,0.330776,68856.0,68855.0,0.03740387]
[1729479106600,0.330776,68856.0,68855.0,0.03240387]
[1729479107325,0.340776,68856.0,68855.0,0.03340387]
[1729479108275,0.330776,68856.0,68855.0,0.03240387]
[1729479108521,0.185546,68856.0,68855.0,0.03240387]
[1729479108753,0.341776,68856.0,68855.0,0.03340387]
[1729479109173,0.334776,68856.0,68855.0,0.03240387]
[1729479109454,0.334776,68856.0,68855.0,0.03240582]
[1729479109709,0.334776,68856.0,68855.0,0.03340582]
[1729479109710,0.341776,68856.0,68855.0,0.03340582]
[1729479110004,0.341776,68856.0,68855.0,0.03340591]
[1729479110645,0.33895341,68856.0,68855.0,0.03340591]
[1729479112877,0.32795341,68856.0,68855.0,0.03240591]
[1729479113109,0.32095341,68856.0,68855.0,0.03140591]
[1729479113340,0.33660941,68856.0,68855.0,0.03340591]
[1729479113565,0.33660941,68856.0,68855.0,0.03240591]
[1729479114021,0.33860941,68856.0,68855.0,0.03240591]
[1729479114486,0.33060941,68856.0,68855.0,0.03140591]
[1729479114729,0.33060941,68856.0,68855.0,0.03140606]
[1729479114990,0.33460941,68856.0,68855.0,0.03140606]
[1729479116445,0.33460941,68856.0,68855.0,0.03141566]
[1729479118140,0.33460941,68856.0,68855.0,0.03141643]
[1729479119559,0.18937941,68856.0,68855.0,0.03141643]
[1729479120620,0.33460941,68856.0,68855.0,0.03141643]
[1729479121267,0.58356856,68856.0,68855.0,0.02641643]
[1729479121479,0.58356856,68856.0,68852.0,0.000828]
[1729479121480,0.145236,68853.0,68852.0,0.000828]
[1729479121708,0.145236,68853.0,68852.0,0.00537113]
[1729479121709,0.56449515,68853.0,68852.0,0.00537113]
[1729479121922,0.56449515,68853.0,68852.0,0.00537126]
[1729479122380,0.56449515,68853.0,68852.0,0.000828]
[1729479123706,0.57049515,68853.0,68852.0,0.001828]
[1729479123927,0.56449515,68853.0,68852.0,0.000828]
[1729479124348,0.57949515,68853.0,68852.0,0.002828]
[1729479124757,0.57049515,68853.0,68852.0,0.001828]
[1729479125178,0.58058908,68853.0,68852.0,0.002828]
[1729479125444,0.57458908,68853.0,68852.0,0.001828]
[1729479125643,0.56158908,68853.0,68852.0,0.000828]
[1729479125858,0.57158908,68853.0,68852.0,0.001828]
[1729479126070,0.57158908,68853.0,68852.0,0.000828]
[1729479126071,0.56158908,68853.0,68852.0,0.000828]
[1729479126549,0.57158908,68853.0,68852.0,0.001828]
[1729479126787,0.56158908,68853.0,68852.0,0.000828]
[1729479127004,0.57558908,68853.0,68852.0,0.001828]
[1729479127227,0.58558908,68853.0,68852.0,0.002828]
[1729479127454,0.58758908,68853.0,68852.0,0.001828]
[1729479127654,0.57358908,68853.0,68852.0,0.000828]
[1729479127899,0.58558908,68853.0,68852.0,0.001828]
[1729479128339,0.58558908,68853.0,68852.0,0.000828]
[1729479128340,0.57158908,68853.0,68852.0,0.000828]
[1729479128796,0.59358908,68853.0,68852.0,0.002828]
[1729479129005,0.57558908,68853.0,68852.0,0.001828]
[1729479129447,0.58358908,68853.0,68852.0,0.002828]
[1729479129687,0.58358908,68853.0,68852.0,0.00655464]
[1729479129904,0.58358908,68853.0,68852.0,0.01609743]
[1729479129905,0.022,68853.0,68852.0,0.01609743]
[1729479130118,0.008,68853.0,68852.0,0.03322148]
[1729479130528,0.008,68853.0,68852.0,0.05968619]
[1729479130746,0.001656,68856.0,68855.0,0.005]
[1729479130926,0.001656,68856.0,68855.0,0.02766684]
[1729479131154,0.146886,68856.0,68855.0,0.02766684]
[1729479131395,0.001656,68856.0,68855.0,0.02766684]
[1729479131626,0.146886,68856.0,68855.0,0.02766684]
[1729479131840,0.45692252,68856.0,68855.0,0.01326943]
[1729479132049,0.46884515,68856.0,68855.0,0.00454279]
[1729479132263,0.147236,68853.0,68852.0,0.00455464]
[1729479132472,0.39419515,68853.0,68852.0,0.00909744]
[1729479133170,0.39419515,68853.0,68852.0,0.00455464]
[1729479133374,0.39419515,68853.0,68852.0,0.00909752]
[1729479133600,0.251236,68853.0,68852.0,0.00909752]
[1729479133801,0.245236,68853.0,68852.0,0.00909752]
[1729479134017,0.39419515,68853.0,68852.0,0.00909752]
[1729479134228,0.40019515,68853.0,68852.0,0.00909752]
[1729479134646,0.40719515,68853.0,68852.0,0.01009752]
[1729479135588,0.40119515,68853.0,68852.0,0.00555464]
[1729479136231,0.40319515,68853.0,68852.0,0.00555464]
[1729479136682,0.40119515,68853.0,68852.0,0.01009767]
[1729479136905,0.40619515,68853.0,68852.0,0.01009757]
[1729479137109,0.39419515,68853.0,68852.0,0.00909757]
[1729479137530,0.40119515,68853.0,68852.0,0.01009757]
[1729479137954,0.39419515,68853.0,68852.0,0.00909757]
[1729479138368,0.40119515,68853.0,68852.0,0.01009757]
[1729479138616,0.40619515,68853.0,68852.0,0.01009757]
[1729479139287,0.40119515,68853.0,68852.0,0.01009757]
[1729479139505,0.40119515,68853.0,68852.0,0.000828]
[1729479139506,0.39419515,68853.0,68852.0,0.000828]
[1729479139736,0.39919515,68853.0,68852.0,0.001828]
[1729479139979,0.30619515,68853.0,68852.0,0.001828]
[1729479140183,0.29419515,68853.0,68852.0,0.000828]
[1729479140396,0.29419515,68853.0,68852.0,0.00537103]
[1729479140654,0.29419515,68853.0,68852.0,0.00909767]
[1729479140872,0.29419515,68853.0,68852.0,0.001828]
[1729479140873,0.30519515,68853.0,68852.0,0.001828]
[1729479141330,0.31219515,68853.0,68852.0,0.002828]
[1729479141763,0.30119515,68853.0,68852.0,0.001828]
[1729479142643,0.30119515,68853.0,68852.0,0.000828]
[1729479142644,0.29419515,68853.0,68852.0,0.000828]
[1729479143085,0.29419515,68853.0,68852.0,0.001828]
[1729479143086,0.30119515,68853.0,68852.0,0.001828]
[1729479143297,0.29419515,68853.0,68852.0,0.000828]
[1729479143510,0.29419515,68853.0,68852.0,0.001828]
[1729479143735,0.29419515,68853.0,68852.0,0.002828]
[1729479143736,0.31419515,68853.0,68852.0,0.002828]
[1729479143949,0.31419515,68853.0,68852.0,0.0110977]
[1729479144171,0.30119515,68853.0,68852.0,0.00555464]
[1729479144406,0.30719515,68853.0,68852.0,0.01009772]
[1729479144623,0.30719515,68853.0,68852.0,0.01109772]
[1729479144624,0.31419515,68853.0,68852.0,0.01109772]
[1729479144832,0.31419515,68853.0,68852.0,0.00655464]
[1729479145038,0.30119515,68853.0,68852.0,0.00555464]
[1729479145257,0.31419515,68853.0,68852.0,0.00655464]
[1729479145465,0.31419515,68853.0,68852.0,0.002828]
[1729479148052,0.31585115,68853.0,68852.0,0.002828]
[1729479148385,0.31585115,68853.0,68852.0,0.00655464]
[1729479148488,0.166892,68853.0,68852.0,0.01109771]
[1729479148695,0.021656,68853.0,68852.0,0.01109771]
[1729479148940,0.166892,68853.0,68852.0,0.02924012]
[1729479149171,0.16406953,68853.0,68852.0,0.02924012]
[1729479149399,0.159892,68853.0,68852.0,0.02824012]
[1729479149640,0.146892,68853.0,68852.0,0.02724012]
[1729479149873,0.147892,68853.0,68852.0,0.02724012]
[1729479150107,0.149892,68853.0,68852.0,0.02724012]
[1729479150356,0.146892,68853.0,68852.0,0.03024012]
[1729479150790,0.001656,68853.0,68852.0,0.02724012]
[1729479151225,0.146892,68853.0,68852.0,0.02724012]
[1729479151456,0.146892,68853.0,68852.0,0.03632503]
[1729479151887,0.146892,68853.0,68852.0,0.0537205]
[1729479152132,0.146892,68853.0,68852.0,0.0557205]
[1729479152338,0.146892,68853.0,68852.0,0.0537205]
[1729479152542,0.146892,68853.0,68852.0,0.03632503]
[1729479152758,0.146892,68853.0,68852.0,0.03024012]
[1729479152966,0.146892,68853.0,68852.0,0.03632502]
[1729479153397,0.146892,68853.0,68852.0,0.03424012]